fUSD/lending_fUSD_20241227
["ID","MTS","AMOUNT","RATE_DAILY","PERIOD"]
[346838212,1735314677828,-500.0,0.00012132,2]
[346838213,1735314677837,-614.11233809,0.00012132,2]
[346838214,1735314677846,-500.0,0.00012132,2]
[346838215,1735314677855,-500.0,0.00012132,2]
[346838216,1735314677865,-1656.18,0.00012132,2]
[346838217,1735314677874,-875.18,0.00012132,2]
[346838218,1735314677886,-1190.1,0.00012132,2]
[346838219,1735314677896,-872.87,0.00012132,2]
[346838220,1735314677905,-510.8,0.00012132,2]
[346838221,1735314677915,-1457.75,0.00012132,2]
[346838222,1735314677924,-500.0,0.00012132,2]
[346838223,1735314677934,-587.57,0.00012132,2]
[346838224,1735314677945,-342.32966108,0.00012132,2]
[346838225,1735314677956,-1193.41,0.00012132,2]
[346838226,1735314677965,-2007.61,0.00012132,2]
[346838227,1735314677975,-615.52,0.00012132,2]
[346838228,1735314677984,-828.05,0.00012132,2]
[346838229,1735314677994,-1098.08,0.00012132,2]
[346838230,1735314678004,-500.0,0.00012132,2]
[346838231,1735314678014,-2339.33,0.00012132,2]
[346838232,1735314678025,-500.0,0.00012132,2]
[346838233,1735314678034,-500.0,0.00012132,2]
[346838234,1735314678044,-967.13,0.00012132,2]
[346838235,1735314678054,-500.0,0.00012132,2]
[346838236,1735314678064,-500.0,0.00012132,2]
[346838237,1735314678073,-783.21,0.00012132,2]
[346838238,1735314678083,-972.12,0.00012132,2]
[346838239,1735314678093,-1407.61,0.00012132,2]
[346838240,1735314678103,-1003.62,0.00012132,2]
[346838241,1735314678114,-1415.57,0.00012132,2]
[346838242,1735314678124,-1337.59,0.00012132,2]
[346838243,1735314678135,-1109.49,0.00012132,2]
[346838244,1735314678145,-918.69,0.00012132,2]
[346838245,1735314678155,-1046.01,0.00012132,2]
[346838246,1735314678165,-1044.43,0.00012132,2]
[346838247,1735314678175,-1092.51,0.00012132,2]
[346838248,1735314678185,-1660.01,0.00012132,2]
[346838249,1735314678196,-500.0,0.00012132,2]
[346838250,1735314678206,-2099.48,0.00012132,2]
[346838251,1735314678216,-500.0,0.00012132,2]
[346838252,1735314678226,-812.6,0.00012132,2]
[346838253,1735314678236,-2313.17,0.00012132,2]
[346838254,1735314678246,-500.0,0.00012132,2]
[346838255,1735314678257,-500.0,0.00012132,2]
[346838256,1735314678267,-500.98,0.00012132,2]
[346838257,1735314678277,-500.0,0.00012132,2]
[346838258,1735314678287,-594.1,0.00012132,2]
[346838259,1735314678296,-953.94,0.00012132,2]
[346838260,1735314678306,-750.72,0.00012132,2]
[346838261,1735314678316,-1065.43,0.00012132,2]
[346838262,1735314678326,-932.99,0.00012132,2]
[346838263,1735314678336,-1324.25,0.00012132,2]
[346838264,1735314678345,-592.17,0.00012132,2]
[346838265,1735314678355,-598.73,0.00012132,2]
[346838266,1735314678365,-1225.75,0.00012132,2]
[346838267,1735314678375,-1238.27,0.00012132,2]
[346838268,1735314678388,-852.84,0.00012132,2]
[346838269,1735314678399,-1250.24,0.00012132,2]
[346838270,1735314678408,-2128.31,0.00012132,2]
[346838271,1735314678419,-525.54,0.00012132,2]
[346838272,1735314678428,-1453.62,0.00012132,2]
[346838273,1735314678438,-553.26,0.00012132,2]
[346838274,1735314678448,-1555.98,0.00012132,2]
[346838275,1735314678458,-2479.56,0.00012132,2]
[346838276,1735314678468,-247.69989627,0.00012132,2]
[346838277,1735314678478,-2259.33,0.00012132,2]
[346838278,1735314678487,-500.0,0.00012132,2]
[346838279,1735314678497,-562.15,0.00012132,2]
[346838280,1735314678507,-540.97,0.00012132,2]
[346838281,1735314678516,-578.24,0.00012132,2]
[346838282,1735314678526,-1046.46,0.00012132,2]
[346838283,1735314678535,-516.89,0.00012132,2]
[346838284,1735314678545,-719.96,0.00012132,2]
[346838285,1735314678555,-2180.48,0.00012133,2]
[346838286,1735314678565,-2636.7,0.00012133,2]
[346838287,1735314678575,-3214.32,0.00012133,2]
[346838288,1735314678585,-2198.14,0.00012133,2]
[346838289,1735314678595,-5513.14,0.00012133,2]
[346838290,1735314678604,-3304.63,0.00012133,2]
[346838291,1735314678614,-15099.28,0.00012133,2]
[346838292,1735314678624,-9411.99,0.00012133,2]
[346838293,1735314678635,-1428.14,0.00012133,2]
[346838294,1735314678645,-1285.3,0.00012133,2]
[346838295,1735314678656,-500.0,0.00012133,2]
[346838296,1735314678666,-1050.04,0.00012133,2]
[346838297,1735314678677,-1139.88,0.00012133,2]
[346838298,1735314678689,-1849.16,0.00012133,2]
[346838299,1735314678699,-4460.96,0.00012133,2]
[346838300,1735314678711,-1294.45,0.00012133,2]
[346838301,1735314678721,-1061.59,0.00012133,2]
[346838302,1735314678731,-1105.15,0.00012133,2]
[346838303,1735314678741,-26313.55,0.00012133,2]
[346838304,1735314678751,-500.0,0.00012133,2]
[346838305,1735314678762,-1754.47,0.00012133,2]
[346838306,1735314678772,-1268.1,0.00012133,2]
[346838307,1735314678782,-1451.39,0.00012133,2]
[346838308,1735314678791,-1278.18,0.00012133,2]
[346838309,1735314678801,-500.0,0.00012133,2]
[346838310,1735314678811,-1799.03,0.00012133,2]
[346838311,1735314678821,-807.86,0.00012133,2]
[346838312,1735314678831,-2017.1,0.00012133,2]
[346838313,1735314678840,-869.13,0.00012133,2]
[346838314,1735314678850,-500.0,0.00012133,2]
[346838315,1735314678860,-1343.09,0.00012133,2]
[346838316,1735314678870,-1994.25,0.00012133,2]
[346838317,1735314678882,-5849.07,0.00012133,2]
[346838318,1735314678892,-2130.16,0.00012133,2]
[346838319,1735314678902,-1333.4,0.00012133,2]
[346838320,1735314678913,-8303.21,0.00012133,2]
[346838321,1735314678923,-1018.72,0.00012133,2]
[346838322,1735314678934,-3267.15,0.00012133,2]
[346838323,1735314678945,-1475.34,0.00012133,2]
[346838324,1735314678957,-1034.53,0.00012133,2]
[346838325,1735314678968,-11879.75,0.00012133,2]
[346838326,1735314678978,-2836.16,0.00012133,2]
[346838327,1735314678988,-2086.16,0.00012133,2]
[346838328,1735314678999,-2544.72,0.00012133,2]
[346838329,1735314679009,-3035.61,0.00012133,2]
[346838330,1735314679019,-3089.48,0.00012133,2]
[346838331,1735314679029,-821.48,0.00012133,2]
[346838332,1735314679041,-2766.05,0.00012133,2]
[346838333,1735314679051,-977.3,0.00012133,2]
[346838334,1735314679061,-6643.89,0.00012133,2]
[346838335,1735314679070,-876.0,0.00012133,2]
[346838336,1735314679080,-2061.18,0.00012133,2]
[346838337,1735314679090,-1293.12,0.00012133,2]
[346838338,1735314679101,-572.68,0.00012133,2]
[346838339,1735314679111,-3188.44,0.00012133,2]
[346838340,1735314679122,-1091.23,0.00012133,2]
[346838341,1735314679135,-500.0,0.00012133,2]
[346838342,1735314679145,-500.0,0.00012133,2]
[346838343,1735314679156,-755.13,0.00012133,2]
[346838344,1735314679166,-10858.22,0.00012133,2]
[346838345,1735314679175,-2809.39,0.00012133,2]
[346838346,1735314679185,-3529.43,0.00012133,2]
[346838347,1735314679195,-3090.43,0.00012133,2]
[346838348,1735314679205,-3172.16,0.00012133,2]
[346838349,1735314679215,-3187.58,0.00012133,2]
[346838350,1735314679225,-4190.88,0.00012133,2]
[346838351,1735314679235,-2891.24,0.00012133,2]
[346838352,1735314679245,-6669.52,0.00012133,2]
[346838353,1735314679255,-3171.34,0.00012133,2]
[346838354,1735314679265,-2341.79,0.00012133,2]
[346838355,1735314679275,-7603.01,0.00012133,2]
[346838356,1735314679285,-500.0,0.00012134,2]
[346838357,1735314679296,-500.0,0.00012134,2]
[346838358,1735314679306,-1141.25,0.00012134,2]
[346838359,1735314679316,-586.73,0.00012134,2]
[346838360,1735314679326,-791.98,0.00012134,2]
[346838361,1735314679335,-531.43,0.00012134,2]
[346838362,1735314679345,-500.0,0.00012134,2]
[346838363,1735314679355,-937.0,0.00012134,2]
[346838364,1735314679365,-575.25,0.00012134,2]
[346838365,1735314679375,-863.89,0.00012134,2]
[346838366,1735314679387,-500.0,0.00012134,2]
[346838367,1735314679397,-651.36,0.00012134,2]
[346838368,1735314679406,-500.0,0.00012134,2]
[346838369,1735314679416,-1000.88,0.00012134,2]
[346838370,1735314679426,-500.0,0.00012134,2]
[346838371,1735314679435,-500.0,0.00012134,2]
[346838372,1735314679445,-500.0,0.00012134,2]
[346838373,1735314679454,-890.74,0.00012134,2]
[346838374,1735314679464,-882.38,0.00012134,2]
[346838375,1735314679475,-880.75,0.00012134,2]
[346838376,1735314679485,-789.64,0.00012134,2]
[346838377,1735314679496,-500.0,0.00012134,2]
[346838378,1735314679506,-552.75,0.00012134,2]
[346838379,1735314679515,-500.0,0.00012134,2]
[346838380,1735314679525,-500.0,0.00012134,2]
[346838381,1735314679535,-500.0,0.00012134,2]
[346838382,1735314679544,-1112.84,0.00012134,2]
[346838383,1735314679553,-500.0,0.00012134,2]
[346838384,1735314679562,-1420.62,0.00012134,2]
[346838385,1735314679572,-500.0,0.00012134,2]
[346838386,1735314679581,-9686.93,0.00012134,2]
[346838387,1735314679591,-32059.34,0.00012134,2]
[346838388,1735314679601,-5583.18,0.00012134,2]
[346838389,1735314679611,-2787.38,0.00012134,2]
[346838390,1735314679620,-2148.59,0.00012134,2]
[346838391,1735314679631,-3436.91,0.00012134,2]
[346838392,1735314679640,-31140.88,0.00012134,2]
[346838393,1735314679650,-1143.6,0.00012134,2]
[346838394,1735314679659,-7488.08,0.00012134,2]
[346838395,1735314679668,-5395.3,0.00012134,2]
[346838396,1735314679678,-1837.27,0.00012134,2]
[346838397,1735314679688,-1047.51,0.00012134,2]
[346838398,1735314679698,-3205.59,0.00012134,2]
[346838399,1735314679708,-6005.2,0.00012134,2]
[346838400,1735314679718,-2094.76,0.00012134,2]
[346838401,1735314679728,-2392.9,0.00012134,2]
[346838402,1735314679737,-2348.06,0.00012134,2]
[346838403,1735314679747,-4557.41,0.00012135,2]
[346838404,1735314679756,-493.76,0.00012213,2]
[346838405,1735314679766,-900.0,0.00012246,2]
[346838406,1735314679775,-2300.0,0.00012246,2]
[346838407,1735314679785,-514.52,0.00012269,2]
[346838408,1735314679794,-175.906183,0.00012313,2]
[346838409,1735314679804,-197.64824,0.00012313,2]
[346838410,1735314679814,-1610.42,0.00012328,2]
[346838411,1735314679823,-1610.42,0.00012328,2]
[346838412,1735314679832,-1610.42,0.00012328,2]
[346838413,1735314679841,-195.36282369,0.00012328,2]
[346838414,1735314680013,-1415.05717631,0.00012328,2]
[346838415,1735314680026,-1610.42,0.00012328,2]
[346838416,1735314680036,-1610.42,0.00012328,2]
[346838417,1735314680045,-1235.08,0.00012328,2]
[346838418,1735314680055,-764.36253723,0.00012328,2]
[346838419,1735314680075,-470.71746277,0.00012328,2]
[346838420,1735314680085,-1235.08,0.00012328,2]
[346838421,1735314680094,-214.20253723,0.00012328,2]
[346838422,1735314680105,-1020.87746277,0.00012328,2]
[346838423,1735314680115,-1235.08,0.00012328,2]
[346838424,1735314680125,-1235.08,0.00012328,2]
[346838425,1735314680135,-151.0,0.00012329,2]
[346838426,1735314680145,-151.0,0.00012329,2]
[346838427,1735314680155,-151.0,0.00012329,2]
[346838428,1735314680165,-151.0,0.00012329,2]
[346838429,1735314680175,-153.728547,0.00012329,2]
[346838430,1735314680185,-151.0,0.00012329,2]
[346838431,1735314680194,-151.0,0.00012329,2]
[346838432,1735314680204,-151.0,0.00012329,2]
[346838433,1735314680214,-151.0,0.00012329,2]
[346838434,1735314680224,-151.0,0.00012329,2]
[346838435,1735314680233,-151.0,0.00012329,2]
[346838436,1735314680243,-151.0,0.00012329,2]
[346838437,1735314680252,-151.0,0.00012329,2]
[346838438,1735314680262,-175.810665,0.00012329,2]
[346838439,1735314680271,-151.0,0.00012329,2]
[346838440,1735314680280,-151.0,0.00012329,2]
[346838441,1735314680289,-261.828647,0.00012329,2]
[346838442,1735314680299,-151.0,0.00012329,2]
[346838443,1735314680309,-151.0,0.00012329,2]
[346838444,1735314680318,-151.0,0.00012329,2]
[346838445,1735314680328,-151.0,0.00012329,2]
[346838446,1735314680337,-151.0,0.00012329,2]
[346838447,1735314680347,-151.0,0.00012329,2]
[346838448,1735314680356,-151.0,0.00012329,2]
[346838449,1735314680366,-151.0,0.00012329,2]
[346838450,1735314680376,-217.609615,0.00012329,2]
[346838451,1735314680387,-151.0,0.00012329,2]
[346838452,1735314680397,-216.105331,0.00012329,2]
[346838453,1735314680406,-151.0,0.00012329,2]
[346838454,1735314680416,-151.0,0.00012329,2]
[346838455,1735314680425,-151.0,0.00012329,2]
[346838456,1735314680435,-151.0,0.00012329,2]
[346838457,1735314680445,-247.728672,0.00012329,2]
[346838458,1735314680455,-151.0,0.00012329,2]
[346838459,1735314680465,-156.929027,0.00012329,2]
[346838460,1735314680475,-151.279847,0.00012329,2]
[346838461,1735314680484,-153.14955,0.00012329,2]
[346838462,1735314680494,-151.0,0.00012329,2]
[346838463,1735314680504,-151.0,0.00012329,2]
[346838464,1735314680514,-151.0,0.00012329,2]
[346838465,1735314680524,-151.0,0.00012329,2]
[346838466,1735314680534,-151.0,0.00012329,2]
[346838467,1735314680543,-151.0,0.00012329,2]
[346838468,1735314680552,-151.0,0.00012329,2]
[346838469,1735314680563,-151.0,0.00012329,2]
[346838470,1735314680573,-151.358175,0.00012329,2]
[346838471,1735314680583,-151.0,0.00012329,2]
[346838472,1735314680592,-151.0,0.00012329,2]
[346838473,1735314680602,-151.0,0.00012329,2]
[346838474,1735314680611,-151.487274,0.00012329,2]
[346838475,1735314680621,-151.0,0.00012329,2]
[346838476,1735314680631,-151.0,0.00012329,2]
[346838477,1735314680641,-151.0,0.00012329,2]
[346838478,1735314680651,-151.0,0.00012329,2]
[346838479,1735314680660,-151.0,0.00012329,2]
[346838480,1735314680670,-151.0,0.00012329,2]
[346838481,1735314680679,-151.0,0.00012329,2]
[346838482,1735314680689,-161.556979,0.00012329,2]
[346838483,1735314680698,-151.0,0.00012329,2]
[346838484,1735314680708,-151.0,0.00012329,2]
[346838485,1735314680718,-151.0,0.00012329,2]
[346838486,1735314680727,-151.0,0.00012329,2]
[346838487,1735314680737,-151.0,0.00012329,2]
[346838488,1735314680747,-151.0,0.00012329,2]
[346838489,1735314680756,-151.0,0.00012329,2]
[346838490,1735314680766,-151.0,0.00012329,2]
[346838491,1735314680776,-151.0,0.00012329,2]
[346838492,1735314680785,-151.0,0.00012329,2]
[346838493,1735314680795,-151.0,0.00012329,2]
[346838494,1735314680804,-151.0,0.00012329,2]
[346838495,1735314680814,-151.0,0.00012329,2]
[346838496,1735314680823,-226.880341,0.00012329,2]
[346838497,1735314680833,-151.0,0.00012329,2]
[346838498,1735314680842,-151.0,0.00012329,2]
[346838499,1735314680853,-151.0,0.00012329,2]
[346838500,1735314680863,-285.870443,0.00012329,2]
[346838501,1735314680872,-151.0,0.00012329,2]
[346838502,1735314680884,-151.0,0.00012329,2]
[346838503,1735314680893,-151.0,0.00012329,2]
[346838504,1735314680903,-151.0,0.00012329,2]
[346838505,1735314680913,-151.0,0.00012329,2]
[346838506,1735314680923,-151.0,0.00012329,2]
[346838507,1735314680933,-151.0,0.00012329,2]
[346838508,1735314680946,-151.0,0.00012329,2]
[346838509,1735314680957,-151.0,0.00012329,2]
[346838510,1735314680967,-151.0,0.00012329,2]
[346838511,1735314680977,-151.0,0.00012329,2]
[346838512,1735314680987,-151.0,0.00012329,2]
[346838513,1735314680997,-151.0,0.00012329,2]
[346838514,1735314681007,-151.0,0.00012329,2]
[346838515,1735314681017,-151.0,0.00012329,2]
[346838516,1735314681026,-151.0,0.00012329,2]
[346838517,1735314681036,-151.0,0.00012329,2]
[346838518,1735314681046,-151.0,0.00012329,2]
[346838519,1735314681056,-178.014164,0.00012329,2]
[346838520,1735314681065,-151.0,0.00012329,2]
[346838521,1735314681077,-151.0,0.00012329,2]
[346838522,1735314681086,-151.0,0.00012329,2]
[346838523,1735314681096,-151.0,0.00012329,2]
[346838524,1735314681105,-151.0,0.00012329,2]
[346838525,1735314681115,-151.0,0.00012329,2]
[346838526,1735314681124,-151.0,0.00012329,2]
[346838527,1735314681135,-151.0,0.00012329,2]
[346838528,1735314681144,-151.0,0.00012329,2]
[346838529,1735314681154,-151.0,0.00012329,2]
[346838530,1735314681164,-151.0,0.00012329,2]
[346838531,1735314681174,-151.0,0.00012329,2]
[346838532,1735314681184,-151.0,0.00012329,2]
[346838533,1735314681194,-151.0,0.00012329,2]
[346838534,1735314681204,-151.0,0.00012329,2]
[346838535,1735314681214,-151.0,0.00012329,2]
[346838536,1735314681224,-151.0,0.00012329,2]
[346838537,1735314681234,-151.0,0.00012329,2]
[346838538,1735314681243,-151.0,0.00012329,2]
[346838539,1735314681253,-151.0,0.00012329,2]
[346838540,1735314681263,-151.0,0.00012329,2]
[346838541,1735314681273,-153.650383,0.00012329,2]
[346838542,1735314681283,-151.0,0.00012329,2]
[346838543,1735314681292,-151.0,0.00012329,2]
[346838544,1735314681302,-151.0,0.00012329,2]
[346838545,1735314681313,-151.0,0.00012329,2]
[346838546,1735314681323,-151.0,0.00012329,2]
[346838547,1735314681333,-153.041182,0.00012329,2]
[346838548,1735314681343,-151.0,0.00012329,2]
[346838549,1735314681353,-151.0,0.00012329,2]
[346838550,1735314681363,-151.0,0.00012329,2]
[346838551,1735314681372,-152.732912,0.00012329,2]
[346838552,1735314681383,-151.0,0.00012329,2]
[346838553,1735314681393,-151.0,0.00012329,2]
[346838554,1735314681403,-151.0,0.00012329,2]
[346838555,1735314681413,-151.0,0.00012329,2]
[346838556,1735314681424,-151.0,0.00012329,2]
[346838557,1735314681433,-151.0,0.00012329,2]
[346838558,1735314681443,-151.0,0.00012329,2]
[346838559,1735314681453,-151.0,0.00012329,2]
[346838560,1735314681462,-151.0,0.00012329,2]
[346838561,1735314681473,-211.745649,0.00012329,2]
[346838562,1735314681483,-151.0,0.00012329,2]
[346838563,1735314681495,-151.0,0.00012329,2]
[346838564,1735314681504,-151.0,0.00012329,2]
[346838565,1735314681514,-151.0,0.00012329,2]
[346838566,1735314681524,-204.68113,0.00012329,2]
[346838567,1735314681534,-151.0,0.00012329,2]
[346838568,1735314681544,-229.063402,0.00012329,2]
[346838569,1735314681554,-229.063402,0.00012329,2]
[346838570,1735314681564,-229.063402,0.00012329,2]
[346838571,1735314681574,-229.063402,0.00012329,2]
[346838572,1735314681585,-229.063402,0.00012329,2]
[346838573,1735314681595,-229.063402,0.00012329,2]
[346838574,1735314681605,-229.063402,0.00012329,2]
[346838575,1735314681615,-229.063402,0.00012329,2]
[346838576,1735314681625,-229.063402,0.00012329,2]
[346838577,1735314681637,-229.063402,0.00012329,2]
[346838578,1735314681647,-229.063402,0.00012329,2]
[346838579,1735314681658,-229.063402,0.00012329,2]
[346838580,1735314681668,-229.063402,0.00012329,2]
[346838581,1735314681679,-229.063402,0.00012329,2]
[346838582,1735314681689,-229.063402,0.00012329,2]
[346838583,1735314681700,-229.063402,0.00012329,2]
[346838584,1735314681710,-120.68594182,0.00012329,2]
[346838585,1735314681727,-108.37746018,0.00012329,2]
[346838586,1735314681737,-220.34136523,0.00012329,2]
[346838587,1735314687764,-1706.04,0.0001076,2]
[346838588,1735314687788,-500.0,0.0001076,2]
[346838589,1735314687811,-500.0,0.0001076,2]
[346838590,1735314687834,-1864.42,0.00010761,2]
[346838591,1735314687856,-500.0,0.00010761,2]
[346838592,1735314687879,-500.0,0.00010762,2]
[346838593,1735314687913,-500.0,0.00010762,2]
[346838594,1735314687940,-528.92,0.00010762,2]
[346838595,1735314687968,-500.0,0.00010762,2]
[346838596,1735314687994,-500.0,0.00010764,2]
[346838597,1735314688659,590.41,0.00010761,2]
[346838598,1735314688692,500.0,0.00010761,2]
[346838599,1735314689656,500.0,0.00010762,2]
[346838600,1735314689795,810.21,0.0001076,2]
[346838601,1735314689820,10000.0,0.0001076,2]
[346838602,1735314690675,-130.44,0.0001076,2]
[346838603,1735314691373,2366.82,0.00010761,2]
[346838604,1735314693057,826.6,0.0001076,2]
[346838605,1735314694576,919.37,0.00010761,2]
[346838606,1735314694755,1386.87,0.00010762,2]
[346838607,1735314695058,500.0,0.0001076,2]
[346838608,1735314695601,1648.61,0.00010761,2]
[346838609,1735314697201,855.93,0.00010762,2]
[346838610,1735314697836,500.0,0.0001076,2]
[346838611,1735314698772,865.36,0.00010763,2]
[346838612,1735314698797,6399.84,0.00010763,2]
[346838613,1735314699646,1571.07,0.00010764,2]
[346838614,1735314701246,574.53,0.0001076,2]
[346838615,1735314701698,1454.56,0.00010761,2]
[346838616,1735314874602,201.24,8.254e-05,2]
[346838617,1735314874652,469.9,8.399e-05,2]
[346838623,1735315290971,150.0,0.00018578,120]
[346838626,1735315470885,150.0,0.00017739,120]
[346838629,1735315631313,157.67,7.995e-05,2]
[346838630,1735315650796,150.0,0.00019132,120]
[346838631,1735315658093,5200.0,0.00015,30]
[346838637,1735315823434,201.24,7.829e-05,2]
[346838638,1735315830741,150.0,0.00017227,120]
[346838651,1735315831435,-157.67,9.328e-05,2]
[346838652,1735315831446,-348.93,9.854e-05,2]
[346838653,1735315834338,-1830.0,9.854e-05,2]
[346838654,1735315834350,-437.19103978,9.854e-05,2]
[346838655,1735315834364,-250.0,9.854e-05,2]
[346838656,1735315834373,-187.22759766,9.933e-05,2]
[346838657,1735315834383,-187.22759765,9.937e-05,2]
[346838658,1735315834394,-187.22759765,9.941e-05,2]
[346838659,1735315834405,-293.49,9.941e-05,2]
[346838660,1735315834415,-197.5,9.991e-05,2]
[346838661,1735315834426,-303.08571776,0.00010024,2]
[346838662,1735315834485,-696.91428224,0.00010024,2]
[346838663,1735315834495,-334.45,0.00010137,2]
[346838664,1735315834505,-1275.69287037,0.000105,2]
[346838665,1735315834528,-4324.56310112,0.000105,2]
[346838666,1735315834538,-166.86,0.00010655,2]
[346838667,1735315834547,-3142.2526,0.0001066,2]
[346838668,1735315834557,-2090.0295,0.0001066,2]
[346838670,1735315834567,-157.67,0.0001066,2]
[346838671,1735315834576,-469.9,0.00010663,2]
[346838672,1735315834585,-200.0,0.000107,3]
[346838673,1735315834595,-19125.43607596,0.000107,2]
[346838674,1735315834607,-24713.40265382,0.000107,2]
[346838679,1735315837373,-13754.86656748,9.854e-05,2]
[346838680,1735315837483,-21873.82092894,9.854e-05,2]
[346838681,1735315837494,-6535.60438578,0.000107,2]
[346838682,1735315837588,-1686.54481556,0.000107,2]
[346838683,1735315837599,-523.24999839,0.000107,2]
[346838840,1735315839424,-500.0,0.000107,2]
[346838856,1735315839586,-1106.11296583,0.000107,2]
[346838865,1735315839695,-11202.02250866,0.000107,2]
[346838866,1735315839705,-500.0,0.00010758,2]
[346838867,1735315839714,-937.5,0.00010759,2]
[346838868,1735315839726,-1901.95,0.00010759,2]
[346838869,1735315839736,-2119.78349108,0.00010759,2]
[346838887,1735315842686,-1408.35650892,0.00010759,2]
[346838888,1735315842696,-1712.19,0.00010759,2]
[346838889,1735315842706,-1901.35,0.00010759,2]
[346838890,1735315842715,-1000.4,0.00010759,2]
[346838892,1735315842724,-1678.44,0.00010759,2]
[346838894,1735315842735,-3116.38,0.00010759,2]
[346838896,1735315842745,-2519.78,0.00010759,2]
[346838897,1735315842754,-24548.3034911,0.00010759,2]
[346838901,1735315842789,-5058.2965089,0.00010759,2]
[346838903,1735315842798,-2447.37,0.00010759,2]
[346838905,1735315842808,-852.86,0.00010759,2]
[346838907,1735315842817,-1075.39,0.00010759,2]
[346838909,1735315842826,-1681.87,0.00010759,2]
[346838911,1735315842835,-1508.22,0.00010759,2]
[346838913,1735315842844,-961.4,0.00010759,2]
[346838915,1735315842853,-534.32,0.00010759,2]
[346838917,1735315842864,-3297.61,0.00010759,2]
[346838919,1735315842873,-2426.25,0.00010759,2]
[346838921,1735315842882,-1357.890554,0.00010759,2]
[346838923,1735315842891,-152.363359,0.00010759,2]
[346838925,1735315842900,-11249.16,0.00010759,2]
[346838927,1735315842909,-1290.259955,0.00010759,2]
[346838929,1735315842919,-645.46,0.00010759,2]
[346838931,1735315842928,-500.0,0.00010759,2]
[346838933,1735315842937,-9127.89,0.00010759,2]
[346838935,1735315842946,-1124.45535006,0.00010759,2]
[346838963,1735315843207,-1273.48464994,0.00010759,2]
[346838966,1735315843223,-1641.62,0.00010759,2]
[346838968,1735315843235,-1564.1,0.00010759,2]
[346838970,1735315843245,-939.44,0.00010759,2]
[346838972,1735315843255,-500.0,0.00010759,2]
[346838974,1735315843264,-3446.99,0.00010759,2]
[346838976,1735315843274,-2210.92,0.00010759,2]
[346838978,1735315843284,-1744.01,0.00010759,2]
[346838980,1735315843293,-500.0,0.00010759,2]
[346838982,1735315843303,-1877.85,0.00010759,2]
[346838984,1735315843312,-500.0,0.00010759,2]
[346838986,1735315843322,-1136.87,0.00010759,2]
[346838988,1735315843332,-432.6496231,0.00010759,2]
[346839068,1735315845489,-414.87824801,0.00010759,2]
[346839069,1735315845500,-290.54754847,0.00010759,2]
[346839070,1735315845598,-167.97458042,0.00010759,2]
[346839071,1735315845609,-778.91674752,0.00010759,2]
[346839110,1735316091376,527.92,8.219e-05,2]
[346839113,1735316460437,1000.0,0.0002,120]
[346839114,1735316490775,150.0,0.00018049,120]
[346839116,1735316651784,800.0,0.0002,120]
[346839119,1735316750971,201.24,7.39e-05,2]
[346839121,1735316786500,157.67,7.397e-05,2]
[346839122,1735316791802,150.0,0.0001969,120]
[346839262,1735317001688,550.76,8.219e-05,2]
[346839288,1735317031728,-250.0,9.198e-05,2]